bitfinex/quotes_SOLUSD_20240821
["timestamp","ask_amount","ask_price","bid_price","bid_amount"]
[1724259820893,7.0761,141.32,141.28,7.0779]
[1724259821701,7.076,141.33,141.29,7.0775]
[1724259822027,7.0756,141.33,141.29,7.0773]
[1724259822509,7.0752,141.34,141.3,7.077]
[1724259823796,7.0761,141.32,141.28,24.7729]
[1724259824615,45.0,141.31,141.28,24.7729]
[1724259827100,45.0,141.31,141.29,7.0775]
[1724259827310,45.0,141.32,141.29,7.0775]
[1724259827613,52.0762,141.32,141.28,24.7729]
[1724259829103,7.0766,141.31,141.28,24.7729]
[1724259829326,52.0762,141.32,141.28,24.7729]
[1724259831092,7.0768,141.31,141.27,7.0785]
[1724259831710,7.0768,141.31,141.27,24.775]
[1724259833999,52.0763,141.32,141.28,7.078]
[1724259834509,52.0763,141.32,141.29,7.0774]
[1724259834510,45.0,141.32,141.29,7.0774]
[1724259835402,7.0758,141.33,141.29,7.0774]
[1724259836101,7.0753,141.34,141.3,7.0767]
[1724259836307,7.0749,141.35,141.31,7.0764]
[1724259836514,7.0751,141.34,141.3,7.0769]
[1724259838218,52.0757,141.33,141.29,30.9932]
[1724259840399,7.0753,141.34,141.29,23.9157]
[1724259840604,7.0753,141.34,141.3,7.0769]
[1724259843010,7.0757,141.33,141.29,30.9932]
[1724259843400,7.0757,141.33,141.29,24.7712]
[1724259843601,7.0762,141.32,141.29,17.6937]
[1724259843800,7.0762,141.32,141.28,7.0779]
[1724259844003,45.0,141.31,141.28,7.0779]
[1724259844234,7.0762,141.32,141.28,7.0779]
[1724259845028,17.6842,141.37,141.28,17.6948]
[1724259845222,7.0755,141.34,141.3,7.0769]
[1724259850333,45.0,141.32,141.29,7.0775]
[1724259850511,7.0758,141.33,141.29,7.0775]
[1724259851113,7.0752,141.34,141.3,7.0768]
[1724259853108,7.0747,141.35,141.31,7.0765]
[1724259854628,7.0751,141.34,141.3,24.7693]
[1724259855343,45.0,141.33,141.3,24.7693]
[1724259858143,52.0757,141.33,141.3,17.6923]
[1724259858645,7.0762,141.32,141.28,7.078]
[1724259858946,45.0,141.31,141.27,17.6955]
[1724259859235,1.53141415,141.32,141.27,17.6955]
[1724259859656,7.077,141.31,141.27,24.7738]
[1724259859932,52.0772,141.3,141.25,22.8424]
[1724259860135,7.0772,141.3,141.25,22.8424]
[1724259860327,45.0,141.29,141.25,22.8424]
[1724259861822,45.0,141.29,141.25,24.25818608]
[1724259862027,7.0767,141.31,141.25,15.7632]
[1724259862844,7.0767,141.31,141.27,7.0785]
[1724259864544,7.0771,141.3,141.26,7.0791]
[1724259864712,45.0,141.29,141.26,7.0791]
[1724259865945,7.0771,141.3,141.26,7.0791]
[1724259866114,45.0,141.29,141.26,7.0791]
[1724259868732,45.0,141.29,141.25,15.7632]
[1724259868924,7.0781,141.28,141.25,15.7632]
[1724259869121,7.0781,141.28,141.24,24.7792]
[1724259869315,52.0787,141.27,141.24,17.6996]
[1724259869521,52.0778,141.29,141.24,24.7792]
[1724259870135,7.0782,141.28,141.24,24.7792]
[1724259870431,45.0,141.27,141.24,24.7792]
[1724259870620,52.0778,141.29,141.24,24.7792]
[1724259871040,52.0778,141.29,141.25,7.0795]
[1724259873544,7.0781,141.28,141.24,24.7796]
[1724259873748,45.0,141.27,141.24,24.7796]
[1724259874131,7.0778,141.29,141.25,7.0796]
[1724259874442,45.0,141.28,141.25,7.0796]
[1724259876149,45.0,141.28,141.25,7.0796]
[1724259876321,7.0771,141.3,141.26,7.0787]
[1724259879861,7.0776,141.29,141.26,7.0787]
[1724259880152,45.0,141.28,141.26,7.0787]
[1724259880839,45.0,141.28,141.25,7.0795]
[1724259881040,1.53141415,141.27,141.22,23.73390718]
[1724259881275,7.0792,141.26,141.22,7.38460718]
[1724259881437,45.0,141.28,141.22,7.38460718]
[1724259881438,52.0797,141.25,141.22,7.38460718]
[1724259881640,7.0797,141.25,141.22,7.38460718]
[1724259881858,45.0,141.24,141.22,14.46560718]
[1724259882235,45.0,141.25,141.22,7.38460718]
[1724259882958,7.078,141.29,141.23,7.0805]
[1724259883256,45.0,141.28,141.24,7.0799]
[1724259883635,7.078,141.29,141.24,7.0799]
[1724259885254,7.076,141.33,141.28,7.078]
[1724259885554,7.0762,141.32,141.27,7.0785]
[1724259886649,45.0,141.31,141.27,7.0785]
[1724259887047,45.0,141.31,141.28,7.078]
[1724259887250,45.0,141.32,141.29,7.0775]
[1724259887453,45.0,141.33,141.29,7.0775]
[1724259887760,7.0755,141.34,141.3,7.0771]
[1724259889165,7.0756,141.33,141.29,7.0775]
[1724259889350,52.0756,141.33,141.29,7.0775]
[1724259890841,45.0,141.33,141.29,22.2195]
[1724259891937,7.0747,141.35,141.3,7.0769]
[1724259892367,45.0,141.34,141.3,7.0769]
[1724259892853,45.0,141.34,141.31,7.0765]
[1724259893170,7.0736,141.37,141.33,7.0755]
[1724259893679,7.0732,141.38,141.33,7.0755]
[1724259894681,45.0,141.37,141.33,7.0755]
[1724259896057,45.0,141.37,141.33,8.49037675]
[1724259896260,7.0727,141.39,141.34,7.075]
[1724259896478,271.8773,141.43,141.34,7.075]
[1724259896479,17.6773,141.43,141.35,8.48927567]
[1724259896658,7.072,141.41,141.36,8.4883417]
[1724259897166,7.0712,141.42,141.36,19.0995417]
[1724259897350,7.0712,141.42,141.37,7.0734]
[1724259897559,7.0712,141.42,141.38,1.41444951]
[1724259897769,7.0712,141.42,141.37,8.48784591]
[1724259898067,7.0712,141.42,141.37,7.0734]
[1724259898980,7.0717,141.41,141.37,7.0734]
[1724259900454,7.0712,141.42,141.37,7.0734]
[1724259900761,20.29681789,141.46,141.37,7.0734]
[1724259900762,52.0716,141.41,141.37,7.0734]
[1724259901877,7.0716,141.41,141.37,7.0734]
[1724259902253,7.0713,141.42,141.38,7.073]
[1724259902877,7.0716,141.41,141.36,17.6849]
[1724259903083,7.0716,141.41,141.36,24.7586]
[1724259904180,7.0721,141.4,141.36,24.7586]
[1724259905478,17.6758,141.44,141.35,22.4931]
[1724259905479,1.53141415,141.43,141.35,22.4931]
[1724259905670,7.0735,141.38,141.35,22.4931]
[1724259906054,17.6806,141.4,141.35,22.4931]
[1724259906261,45.0,141.39,141.31,22.1468]
[1724259906466,7.0742,141.36,141.31,29.2234]
[1724259906779,7.0738,141.37,141.33,7.0754]
[1724259907176,45.0,141.39,141.32,24.7655]
[1724259907177,7.0743,141.36,141.32,24.7655]
[1724259909162,7.0743,141.36,141.32,17.6896]
[1724259909368,7.0743,141.36,141.32,24.7656]
[1724259911104,17.683,141.38,141.31,22.1468]
[1724259911398,17.683,141.38,141.26,35.3953]
[1724259911399,7.077,141.31,141.27,22.5637]
[1724259912187,7.077,141.31,141.27,29.6422]
[1724259912388,7.0762,141.32,141.28,7.078]
[1724259913390,7.0762,141.32,141.27,29.6423]
[1724259913568,17.6857,141.36,141.28,7.0779]
[1724259913569,7.0758,141.33,141.28,7.0779]
[1724259913772,52.0764,141.32,141.27,29.6422]
[1724259915489,52.0764,141.32,141.28,7.0779]
[1724259915691,7.0764,141.32,141.28,7.0779]
[1724259916713,15.0392,141.38,141.28,19.11008021]
[1724259916999,7.075,141.35,141.3,7.0769]
[1724259917180,7.075,141.35,141.31,1.41504986]
[1724259917692,7.0751,141.34,141.3,7.0769]
[1724259917906,7.0747,141.35,141.3,7.0769]
[1724259918070,7.0747,141.35,141.31,1.41497739]
[1724259918269,7.0747,141.35,141.31,8.49147739]
[1724259918785,7.0747,141.35,141.31,7.0765]
[1724259918971,7.0747,141.35,141.3,24.769]
[1724259922996,7.0751,141.34,141.3,24.769]
[1724259923597,7.0751,141.34,141.31,1.41512656]
[1724259923800,7.0751,141.34,141.3,24.769]
[1724259925295,7.0751,141.34,141.31,1.41503468]
[1724259925491,7.0746,141.35,141.31,7.0765]
[1724259926904,17.6822,141.39,141.3,17.6921]
[1724259926905,7.0751,141.34,141.3,24.7691]
[1724259928508,7.0747,141.35,141.31,7.0766]
[1724259928687,7.0747,141.35,141.3,17.6921]
[1724259928688,7.0751,141.34,141.3,17.6921]
[1724259928892,7.0757,141.33,141.3,17.6921]
[1724259929119,7.0757,141.33,141.29,7.0774]
[1724259929301,7.0757,141.33,141.28,7.0779]
[1724259930210,18.6850155,141.41,141.28,7.0779]
[1724259930211,7.0762,141.32,141.28,7.0779]
[1724259930515,7.0762,141.32,141.27,40.2595]
[1724259930516,7.0758,141.33,141.29,7.0775]
[1724259930721,7.0753,141.34,141.3,8.49219645]
[1724259930904,7.0753,141.34,141.3,7.077]
[1724259932305,7.0753,141.34,141.29,24.7712]
[1724259933106,7.0756,141.33,141.29,24.7712]
[1724259934325,7.0756,141.33,141.29,26.18630812]
[1724259934502,7.0756,141.33,141.3,1.41510773]
[1724259934823,17.6837,141.38,141.3,8.49210773]
[1724259935122,7.0747,141.35,141.3,8.49210773]
[1724259935824,7.0747,141.35,141.31,7.0765]
[1724259936598,7.0742,141.36,141.33,16.5169]
[1724259936815,7.0742,141.36,141.34,1.414688]
[1724259937014,7.0736,141.37,141.34,1.414688]
[1724259937908,7.0741,141.36,141.33,16.5169]
[1724259938409,36.3648155,141.41,141.33,16.5169]
[1724259938410,7.0746,141.35,141.33,16.5169]
[1724259938821,7.0742,141.36,141.33,16.5169]
[1724259942219,7.0742,141.36,141.34,1.41487562]
[1724259942411,7.0742,141.36,141.33,16.5169]
[1724259944124,7.0742,141.36,141.33,17.93174411]
[1724259945331,7.0742,141.36,141.33,16.5169]
[1724259945528,7.0738,141.37,141.33,23.5922]
[1724259945717,17.6798,141.41,141.33,23.5922]
[1724259945718,17.6798,141.41,141.33,34.2056]
[1724259946426,7.0728,141.39,141.35,7.0746]
[1724259948415,7.0732,141.38,141.34,7.0749]
[1724259949016,7.0742,141.36,141.33,16.5169]
[1724259949220,17.6807,141.4,141.33,16.5169]
[1724259949431,45.0,141.39,141.33,17.93182989]
[1724259949725,45.0,141.39,141.33,16.5169]
[1724259949934,7.0745,141.36,141.33,16.5169]
[1724259952833,45.0,141.39,141.33,16.5169]
[1724259953033,7.0751,141.34,141.33,16.5169]
[1724259953236,7.0751,141.34,141.3,41.0525]
[1724259954456,17.6834,141.38,141.3,33.9755]
[1724259954744,45.0,141.37,141.3,33.9755]
[1724259955335,7.0749,141.35,141.31,7.0766]
[1724259958355,7.0751,141.34,141.3,41.0525]
[1724259959625,7.0748,141.35,141.31,7.0763]
[1724259959820,7.0748,141.35,141.31,8.4912773]
[1724259960248,7.0748,141.35,141.31,7.0763]
[1724259961329,7.0751,141.34,141.3,41.0525]
[1724259961834,7.0751,141.34,141.31,1.41508728]
[1724259962538,7.0751,141.34,141.3,41.0525]
[1724259962852,7.0748,141.35,141.3,41.0525]
[1724259964253,7.0752,141.34,141.3,41.0525]
[1724259966853,7.0752,141.34,141.3,42.46750511]
[1724259969463,7.0748,141.35,141.3,42.46750511]
[1724259969639,7.0748,141.35,141.31,7.0763]
[1724259969961,7.0743,141.36,141.32,1.41487568]
[1724259970136,7.0748,141.35,141.31,7.0763]
[1724259970764,7.0748,141.35,141.3,33.9755]
[1724259970765,7.0751,141.34,141.3,41.0524]
[1724259972468,17.6859,141.36,141.3,16.2837]
[1724259972661,7.0766,141.31,141.3,16.2837]
[1724259972867,46.53141415,141.35,141.3,16.2837]
[1724259972868,7.0762,141.32,141.3,16.2837]
[1724259973668,45.0,141.35,141.27,24.774]
[1724259973669,7.0767,141.31,141.27,24.774]
[1724259975171,7.0767,141.31,141.27,17.6956]
[1724259975352,45.0,141.35,141.27,17.6956]
[1724259975353,7.0771,141.3,141.27,17.6956]
[1724259976741,7.0777,141.29,141.26,16.1317]
[1724259977947,7.0773,141.3,141.26,23.2106]
[1724259981459,17.6884,141.34,141.27,7.0785]
[1724259981662,17.685,141.37,141.28,1.41524975]
[1724259981856,20.0,141.36,141.26,16.1317]
[1724259982946,7.0763,141.32,141.28,24.7731]
[1724259985047,20.0,141.36,141.29,7.0775]
[1724259985048,7.0757,141.33,141.29,7.0775]
[1724259985746,7.0753,141.34,141.3,7.0769]
[1724259986875,7.0747,141.35,141.31,7.0766]
[1724259987050,7.0747,141.35,141.32,1.41498413]
[1724259987552,17.6812,141.4,141.31,16.1444]
[1724259987744,7.0724,141.4,141.35,7.0746]
[1724259987945,7.0724,141.4,141.36,1.41457225]
[1724259988767,7.0724,141.4,141.36,8.48847225]
[1724259988967,7.0717,141.41,141.37,7.0736]
[1724259989266,7.0721,141.4,141.36,7.074]
[1724259990143,7.0717,141.41,141.37,7.0734]
[1724259990350,59.3142,141.46,141.38,8.48697619]
[1724259990351,7.0712,141.42,141.38,8.48697619]
[1724259991160,7.0712,141.42,141.38,7.0731]
[1724259992259,7.0712,141.42,141.37,22.5731]
[1724259992770,7.0716,141.41,141.37,22.5731]
[1724259992977,7.071,141.43,141.38,7.0729]
[1724259993663,7.0719,141.41,141.37,15.4996]
[1724259994366,7.0727,141.39,141.34,22.8473]
[1724259994571,17.6783,141.42,141.34,15.7723]
[1724259994760,46.53141415,141.41,141.34,15.7723]
[1724259994949,7.0737,141.37,141.34,15.7723]
[1724259995975,7.0747,141.35,141.31,7.0765]
[1724259996173,7.0752,141.34,141.3,39.688]
[1724259997778,7.0756,141.33,141.3,21.9957]
[1724259998074,7.0761,141.32,141.27,40.2319]
[1724259998258,52.0766,141.31,141.27,40.2319]
[1724259998878,45.0,141.31,141.27,40.2319]
[1724259999477,52.0766,141.31,141.27,33.1534]
[1724260000168,7.0772,141.3,141.27,15.4571]
[1724260005061,52.0767,141.31,141.27,22.5355]
[1724260012098,45.0,141.31,141.28,7.0781]
[1724260013090,52.0767,141.31,141.27,22.5356]
[1724260015101,7.0771,141.3,141.26,24.7764]
[1724260015383,45.0,141.29,141.26,24.7764]
[1724260017181,52.0776,141.29,141.26,17.6975]
[1724260017382,45.0,141.29,141.26,24.7765]
[1724260017593,45.0,141.29,141.26,17.6975]
[1724260018902,52.0776,141.29,141.25,7.0794]
[1724260020190,17.6856,141.36,141.25,17.6988]
[1724260020871,17.6856,141.36,141.27,7.0786]
[1724260021286,7.077,141.31,141.26,7.0789]
[1724260021486,7.0777,141.29,141.25,24.7784]
[1724260021690,7.0772,141.3,141.25,24.7784]
[1724260022289,45.0,141.29,141.25,24.7784]
[1724260023391,45.0,141.29,141.26,7.079]
[1724260023611,7.0768,141.31,141.27,7.0785]
[1724260023770,7.0762,141.32,141.27,7.0784]
[1724260024094,7.0762,141.32,141.28,7.0781]
[1724260024671,7.0762,141.32,141.27,7.0785]
[1724260025177,45.0,141.31,141.27,7.0785]
[1724260025801,52.0766,141.31,141.27,7.0785]
[1724260033098,7.078,141.29,141.25,24.7781]
[1724260033317,45.0,141.28,141.25,24.7781]
[1724260034991,45.0,141.28,141.26,7.0791]
[1724260035180,7.078,141.29,141.26,7.0791]
[1724260035394,7.0773,141.3,141.26,7.0791]
[1724260035594,45.0,141.29,141.26,7.0791]
[1724260036910,45.0,141.29,141.27,7.0785]
[1724260037117,45.0,141.3,141.27,7.0785]
[1724260037436,52.0772,141.3,141.26,7.0789]
[1724260041405,52.0772,141.3,141.25,17.6988]
[1724260041406,7.0781,141.28,141.25,17.6988]
[1724260041611,7.0777,141.29,141.25,24.7782]
[1724260041915,45.0,141.28,141.25,24.7782]
[1724260043826,52.0784,141.28,141.23,16.211]
[1724260044150,45.0,141.28,141.22,17.7022]
[1724260044937,7.0787,141.27,141.23,7.0805]
[1724260045141,45.0,141.28,141.25,7.0796]
[1724260045348,45.0,141.28,141.24,17.6996]
[1724260046416,52.0781,141.28,141.24,24.7796]
[1724260051234,45.0,141.28,141.21,25.10061797]
[1724260052148,45.0,141.28,141.21,7.39731797]
[1724260052360,7.0797,141.25,141.21,7.39731797]
[1724260052638,45.0,141.24,141.21,7.39731797]
[1724260053225,45.0,141.24,141.21,14.47881797]
[1724260053744,45.0,141.25,141.21,14.47881797]
[1724260054738,45.0,141.25,141.22,7.0811]
[1724260055047,22.8096,141.27,141.21,7.39731797]
[1724260055229,22.8096,141.27,141.23,7.0805]
[1724260055743,22.8096,141.27,141.22,7.081]
[1724260056425,7.0787,141.27,141.23,7.0804]
[1724260056743,45.0,141.26,141.23,7.0804]
[1724260057043,45.0,141.27,141.23,7.0804]
[1724260057543,7.0778,141.29,141.24,17.7]
[1724260057732,7.0778,141.29,141.24,24.7798]
[1724260058125,7.0782,141.28,141.24,24.7798]
[1724260058820,45.0,141.27,141.24,24.7798]
[1724260062146,45.0,141.27,141.24,17.7]
[1724260062930,52.0787,141.27,141.24,17.7]
[1724260063329,45.0,141.27,141.24,24.7801]
[1724260067939,45.0,141.28,141.24,24.7801]
[1724260068338,7.0786,141.27,141.24,17.7]
[1724260068540,45.0,141.26,141.24,17.7]
[1724260068749,45.0,141.26,141.22,16.3496]
[1724260069860,45.0,141.26,141.23,7.0806]
[1724260072639,52.0792,141.26,141.22,7.081]
[1724260073052,45.0,141.26,141.23,7.0805]
[1724260077462,52.0792,141.26,141.22,7.081]
[1724260083441,45.0,141.26,141.23,7.0805]
[1724260084260,52.0792,141.26,141.22,7.0809]
[1724260086062,45.0,141.26,141.23,7.0805]
[1724260087853,7.0778,141.29,141.25,17.6989]
[1724260088055,7.0781,141.28,141.25,17.6989]
[1724260088380,7.0789,141.27,141.22,17.7019]
[1724260088553,1.53141415,141.26,141.23,7.0804]
[1724260089250,46.53141415,141.26,141.23,7.0804]
[1724260089751,45.0,141.26,141.23,7.0804]
[1724260090168,45.0,141.26,141.22,17.7019]
[1724260090455,7.0811,141.22,141.21,7.39731797]
[1724260090855,52.0811,141.22,141.21,7.39731797]
[1724260091279,45.0,141.22,141.21,7.39731797]
[1724260092356,16.6648,141.25,141.21,7.39731797]
[1724260092676,7.0781,141.28,141.24,7.08]
[1724260092852,21.6133,141.29,141.23,17.7016]
[1724260093455,21.6133,141.29,141.25,7.0796]
[1724260094073,28.691,141.29,141.25,7.0796]
[1724260094264,45.0,141.28,141.25,7.0796]
[1724260096570,45.0,141.28,141.24,7.0799]
[1724260098579,1.53141415,141.27,141.24,7.0799]
[1724260098980,45.0,141.28,141.24,7.0799]
[1724260100484,52.0781,141.28,141.24,7.0799]
[1724260101889,7.0761,141.32,141.28,7.0778]
[1724260102092,15.4287,141.33,141.25,13.48]
[1724260102266,7.0742,141.36,141.32,7.0761]
[1724260102472,7.0742,141.36,141.27,13.48]
[1724260102674,7.0742,141.36,141.31,24.7676]
[1724260102986,7.0747,141.35,141.31,24.7676]
[1724260103706,52.0752,141.34,141.3,7.077]
[1724260105899,1.53141415,141.33,141.3,7.077]
[1724260107192,52.0752,141.34,141.3,7.077]
[1724260110597,52.0752,141.34,141.29,7.0774]
[1724260111698,1.53141415,141.33,141.29,7.0774]
[1724260111900,1.53141415,141.32,141.29,7.0774]
[1724260112079,46.53141415,141.32,141.29,7.0774]
[1724260113092,45.0,141.32,141.29,7.0774]
[1724260113778,45.0,141.32,141.3,7.0768]
[1724260113980,45.0,141.33,141.3,7.0768]
[1724260117501,39.0146,141.37,141.3,7.0768]
[1724260117502,15.2639,141.37,141.3,17.6922]
[1724260117709,7.0744,141.36,141.32,7.0761]
[1724260118697,45.0,141.35,141.32,7.0761]
[1724260119728,45.0,141.35,141.31,7.0764]
[1724260120503,1.53141415,141.34,141.3,24.7692]
[1724260121292,8.60651415,141.34,141.3,24.7692]
[1724260121611,45.0,141.33,141.3,24.7692]
[1724260124886,52.0756,141.33,141.3,17.6922]
[1724260125207,52.0756,141.33,141.29,7.0774]
[1724260125505,7.0761,141.32,141.28,7.0778]
[1724260125714,45.0,141.31,141.28,7.0778]
[1724260128207,7.0772,141.3,141.27,17.6956]
[1724260128409,45.0,141.31,141.25,22.8744]
[1724260128713,7.0772,141.3,141.25,22.8744]
[1724260128911,45.0,141.29,141.25,22.8744]
[1724260130220,7.0783,141.28,141.24,17.6995]
[1724260130425,45.0,141.27,141.24,17.6995]
[1724260131506,52.0787,141.27,141.23,7.0805]
[1724260131917,45.0,141.27,141.23,7.0805]
[1724260132288,45.0,141.27,141.24,7.08]
[1724260134508,45.0,141.28,141.24,7.08]
[1724260135899,45.0,141.28,141.25,7.0793]
[1724260138216,52.0784,141.28,141.24,7.0799]
[1724260138611,45.0,141.28,141.24,7.0799]
[1724260138911,45.0,141.28,141.25,7.0795]
[1724260139302,45.0,141.29,141.25,7.0795]
[1724260140010,7.0767,141.31,141.25,17.6988]
[1724260140422,7.0767,141.31,141.27,7.0782]
[1724260140617,7.0771,141.3,141.26,7.079]
[1724260141216,1.35141415,141.29,141.26,7.079]
[1724260141625,7.0771,141.3,141.26,7.079]
[1724260141917,45.0,141.29,141.26,7.079]
[1724260142224,46.35141415,141.29,141.26,7.079]
[1724260144040,45.0,141.29,141.26,7.079]
[1724260144701,45.0,141.29,141.27,7.0785]
[1724260144908,7.0767,141.31,141.27,7.0785]
[1724260145105,45.0,141.3,141.27,7.0785]
[1724260146504,52.0772,141.3,141.26,7.079]
[1724260146704,52.0772,141.3,141.25,24.7782]
[1724260147020,52.0772,141.3,141.25,17.6988]
[1724260147239,7.0779,141.29,141.25,17.6988]
[1724260147405,45.0,141.28,141.25,17.6988]
[1724260148724,13.2599,141.34,141.3,7.077]
[1724260148906,7.0757,141.33,141.29,7.0775]
[1724260149107,1.35141415,141.32,141.29,17.6937]
[1724260149326,7.0757,141.33,141.29,17.6937]
[1724260150118,45.0,141.32,141.29,17.6937]
[1724260151531,46.35141415,141.32,141.29,17.6937]
[1724260153531,45.0,141.32,141.29,17.6937]
[1724260153713,52.0762,141.32,141.29,17.6937]
[1724260155330,52.0762,141.32,141.28,7.078]
[1724260158345,52.0761,141.32,141.28,7.078]
[1724260158712,42.74663881,141.36,141.28,17.6947]
[1724260158914,41.39522466,141.36,141.28,17.6947]
[1724260159119,16.5884,141.36,141.26,48.874]
[1724260159316,6.0824,141.37,141.32,7.0757]
[1724260159847,7.0749,141.35,141.3,17.6926]
[1724260160212,7.0751,141.34,141.3,24.7695]
[1724260160732,45.0,141.33,141.3,24.7695]
[1724260160930,7.0748,141.35,141.3,24.7695]
[1724260160931,45.0,141.34,141.3,24.7695]
[1724260161439,45.0,141.34,141.31,7.0766]
[1724260163132,45.0,141.34,141.3,17.6926]
[1724260163133,1.35141415,141.33,141.3,17.6926]
[1724260163330,8.42701415,141.33,141.3,17.6926]
[1724260163536,52.0761,141.32,141.27,24.7739]
[1724260163916,52.0761,141.32,141.28,7.078]
[1724260168336,1.35141415,141.31,141.25,15.9692]
[1724260169129,45.0,141.32,141.24,17.6993]
[1724260169331,45.0,141.33,141.24,17.6993]
[1724260169835,19.04261415,141.32,141.24,17.6993]
[1724260170035,45.0,141.31,141.24,17.6993]
[1724260170245,1.35141415,141.3,141.24,17.6993]
[1724260170417,1.35141415,141.29,141.24,17.6993]
[1724260170846,45.0,141.31,141.24,24.7793]
[1724260171032,46.35141415,141.31,141.24,24.7793]
[1724260171342,7.0779,141.29,141.25,7.0795]
[1724260171547,45.0,141.28,141.26,7.0791]
[1724260171921,45.0,141.29,141.26,7.0791]
[1724260174049,45.0,141.3,141.26,7.0791]
[1724260174223,45.0,141.3,141.27,7.0784]
[1724260174426,7.0767,141.31,141.27,7.0784]
[1724260175254,32.9249,141.35,141.28,17.695]
[1724260175457,15.2381,141.35,141.28,17.695]
[1724260175754,7.0756,141.33,141.29,7.0773]
[1724260177240,45.0,141.32,141.29,7.0773]
[1724260179164,45.0,141.32,141.3,7.0769]
[1724260179342,45.0,141.33,141.3,7.0769]
[1724260179543,45.0,141.33,141.29,7.0774]
[1724260180371,52.0756,141.33,141.29,7.0774]
[1724260183267,52.0756,141.33,141.28,24.7729]
[1724260188002,7.0761,141.32,141.28,24.7729]
[1724260188169,52.0767,141.31,141.28,17.695]
[1724260188367,45.0,141.31,141.28,24.7731]
[1724260189472,45.0,141.31,141.25,17.6983]
[1724260190075,52.077,141.31,141.26,7.0789]
[1724260190299,7.0772,141.3,141.26,7.0789]
[1724260190503,45.0,141.29,141.26,7.0789]
[1724260191597,45.0,141.3,141.26,7.0789]
[1724260193491,45.0,141.3,141.27,7.0783]
[1724260194109,45.0,141.3,141.28,7.078]
[1724260194576,45.0,141.31,141.28,7.078]
[1724260196005,45.0,141.31,141.27,24.7746]
[1724260198099,45.0,141.31,141.27,17.6962]
[1724260198284,45.0,141.31,141.28,7.078]
[1724260198484,45.0,141.32,141.28,7.078]
[1724260200995,52.0762,141.32,141.28,7.078]
[1724260201291,52.0762,141.32,141.27,24.7747]
[1724260201506,45.0,141.32,141.28,7.078]
[1724260202617,45.0,141.32,141.27,17.6962]
[1724260202817,45.0,141.32,141.29,7.0774]
[1724260203021,7.0757,141.33,141.29,7.0774]
[1724260203199,45.0,141.32,141.29,7.0774]
[1724260203917,45.0,141.32,141.28,7.0779]
[1724260204093,52.0761,141.32,141.28,7.0779]
[1724260207620,45.0,141.32,141.29,7.0776]
[1724260210822,7.0752,141.34,141.3,7.0769]
[1724260211328,7.0752,141.34,141.31,7.0766]
[1724260211706,7.0748,141.35,141.31,7.0766]
[1724260212819,45.0,141.34,141.31,7.0766]
[1724260213326,52.0753,141.34,141.3,7.077]
[1724260216914,45.0,141.34,141.31,7.0765]
[1724260217122,7.0747,141.35,141.31,7.0765]
[1724260219047,7.0751,141.34,141.3,7.0769]
[1724260219828,7.0747,141.35,141.31,7.0764]
[1724260220923,7.0743,141.36,141.32,7.076]
[1724260221124,52.0746,141.35,141.31,24.7677]
[1724260223338,24.80301939,141.39,141.35,7.0741]
[1724260223514,24.80301939,141.39,141.33,13.48]
[1724260223836,15.6429,141.43,141.37,7.0735]